fUSD/lending_fUSD_20251017
["ID","MTS","AMOUNT","RATE_DAILY","PERIOD"]
[391628594,1760709103981,-500.0,0.00026849,2]
[391628595,1760709103990,-500.0,0.00026849,2]
[391628596,1760709103999,-161.49959256,0.00027,2]
[391628597,1760709104008,-14928.46,0.00027,7]
[391628598,1760709104017,-164.0,0.00027,2]
[391628599,1760709104025,-500.0,0.00027123,2]
[391628600,1760709104034,-500.0,0.00027123,2]
[391628601,1760709104042,-445.55494109,0.00027123,2]
[391628602,1760709104051,-500.0,0.00027123,2]
[391628603,1760709104061,-1160.36,0.00027123,2]
[391628604,1760709104070,-585.15,0.00027123,2]
[391628605,1760709104079,-500.0,0.00027123,2]
[391628606,1760709104088,-273.78870446,0.00027123,2]
[391628607,1760709104097,-500.0,0.00027123,2]
[391628608,1760709104106,-500.0,0.00027123,2]
[391628609,1760709104117,-500.0,0.00027123,2]
[391628610,1760709104126,-500.0,0.00027123,2]
[391628611,1760709104135,-617.82446745,0.00027123,2]
[391628612,1760709104145,-1061.05,0.00027123,2]
[391628613,1760709104154,-500.0,0.00027123,2]
[391628614,1760709104163,-500.0,0.00027123,2]
[391628615,1760709104173,-500.84036605,0.00027123,2]
[391628616,1760709104182,-258.206332,0.00027123,7]
[391628617,1760709104191,-592.79,0.00027123,2]
[391628618,1760709104200,-500.0,0.00027123,2]
[391628619,1760709104209,-1160.24,0.00027123,2]
[391628620,1760709104219,-151.0,0.00027123,7]
[391628621,1760709104228,-292.835847,0.00027123,7]
[391628622,1760709104238,-1730.63,0.00027123,2]
[391628623,1760709104247,-151.0,0.00027123,7]
[391628624,1760709104256,-671.89,0.00027123,2]
[391628625,1760709104266,-500.0,0.00027123,2]
[391628626,1760709104275,-500.0,0.00027123,2]
[391628627,1760709104284,-500.0,0.00027123,2]
[391628628,1760709104294,-1711.57,0.00027123,2]
[391628629,1760709104303,-151.0,0.00027123,7]
[391628630,1760709104312,-151.0,0.00027123,7]
[391628631,1760709104321,-419.218869,0.00027123,7]
[391628632,1760709104330,-419.218869,0.00027123,7]
[391628633,1760709104340,-151.0,0.00027123,7]
[391628634,1760709104349,-419.218869,0.00027123,7]
[391628635,1760709104358,-419.218869,0.00027123,7]
[391628636,1760709104369,-151.0,0.00027123,7]
[391628637,1760709104378,-526.67,0.00027123,2]
[391628638,1760709104388,-3442.59,0.00027123,2]
[391628639,1760709104397,-500.0,0.00027123,2]
[391628640,1760709104407,-606.95,0.00027123,2]
[391628641,1760709104417,-780.1,0.00027123,2]
[391628642,1760709104427,-500.0,0.00027123,2]
[391628643,1760709104435,-770.05,0.00027123,2]
[391628644,1760709104444,-500.0,0.00027123,2]
[391628645,1760709104454,-500.0,0.00027123,2]
[391628646,1760709104463,-1701.03,0.00027123,2]
[391628647,1760709104473,-1200.12,0.00027123,2]
[391628648,1760709104483,-1288.92,0.00027123,2]
[391628649,1760709104493,-500.0,0.00027123,2]
[391628650,1760709104502,-500.0,0.00027123,2]
[391628651,1760709104512,-1817.2,0.00027123,2]
[391628652,1760709104521,-500.0,0.00027123,2]
[391628653,1760709104531,-760.86,0.00027123,2]
[391628654,1760709104540,-500.0,0.00027123,2]
[391628655,1760709104550,-500.0,0.00027123,2]
[391628656,1760709104560,-2000.0,0.00027123,13]
[391628657,1760709104570,-1098.2,0.00027123,2]
[391628658,1760709104579,-511.22,0.00027123,2]
[391628659,1760709104589,-706.0,0.00027123,2]
[391628660,1760709104600,-500.0,0.00027123,2]
[391628661,1760709104611,-3252.66,0.00027123,2]
[391628662,1760709104746,-1046.4,0.00027123,2]
[391628663,1760709104756,-2857.65,0.00027123,2]
[391628664,1760709104766,-500.0,0.00027123,2]
[391628665,1760709104776,-500.0,0.00027123,2]
[391628666,1760709104786,-668.62,0.00027123,2]
[391628667,1760709104796,-3315.73,0.00027123,2]
[391628668,1760709104805,-2028.03,0.00027123,2]
[391628669,1760709104815,-1249.99,0.00027123,2]
[391628670,1760709104825,-666.89,0.00027123,2]
[391628671,1760709104834,-500.0,0.00027123,2]
[391628672,1760709104844,-567.07,0.00027123,2]
[391628673,1760709104854,-624.28,0.00027123,2]
[391628674,1760709104863,-500.0,0.00027123,2]
[391628675,1760709104873,-500.0,0.00027123,2]
[391628676,1760709104883,-500.0,0.00027123,2]
[391628677,1760709104892,-500.0,0.00027123,2]
[391628678,1760709104902,-644.5,0.00027123,2]
[391628679,1760709104911,-738.71,0.00027123,2]
[391628680,1760709104921,-500.0,0.00027123,2]
[391628681,1760709104931,-445.01785237,0.00027123,2]
[391628682,1760709104941,-500.0,0.00027123,2]
[391628683,1760709104951,-875.04,0.00027123,2]
[391628684,1760709104960,-331.25,0.00027123,2]
[391628685,1760709104970,-500.0,0.00027123,2]
[391628686,1760709104979,-500.0,0.00027123,2]
[391628687,1760709104991,-2590.26,0.00027123,2]
[391628688,1760709105001,-1145.85,0.00027123,2]
[391628689,1760709105010,-500.0,0.00027123,2]
[391628690,1760709105020,-500.0,0.00027123,2]
[391628691,1760709105031,-589.63,0.00027123,2]
[391628692,1760709105040,-840.86,0.00027123,2]
[391628693,1760709105050,-500.0,0.00027123,2]
[391628694,1760709105060,-599.72,0.00027123,2]
[391628695,1760709105071,-500.0,0.00027123,2]
[391628696,1760709105080,-2359.88,0.00027123,2]
[391628697,1760709105090,-2899.42,0.00027123,2]
[391628698,1760709105100,-926.78,0.00027123,2]
[391628699,1760709105110,-970.74,0.00027123,2]
[391628700,1760709105120,-1604.59,0.00027123,2]
[391628701,1760709105130,-500.0,0.00027123,2]
[391628702,1760709105140,-500.0,0.00027123,2]
[391628703,1760709105149,-500.0,0.00027123,2]
[391628704,1760709105158,-693.35,0.00027123,2]
[391628705,1760709105167,-620.21,0.00027123,2]
[391628706,1760709105177,-500.0,0.00027123,2]
[391628707,1760709105187,-500.0,0.00027123,2]
[391628708,1760709105196,-693.02,0.00027123,2]
[391628709,1760709105206,-494.45468588,0.00027123,2]
[391628710,1760709105216,-500.0,0.00027123,2]
[391628711,1760709105226,-500.0,0.00027123,2]
[391628712,1760709105237,-1354.15,0.00027123,2]
[391628713,1760709105247,-3285.62,0.00027123,2]
[391628714,1760709105257,-500.0,0.00027123,2]
[391628715,1760709105267,-500.0,0.00027123,2]
[391628716,1760709105277,-500.0,0.00027123,2]
[391628717,1760709105287,-751.82,0.00027123,2]
[391628718,1760709105296,-1494.42,0.00027123,2]
[391628719,1760709105306,-210.63051936,0.00027123,2]
[391628720,1760709105316,-633.38,0.00027123,2]
[391628721,1760709105326,-500.0,0.00027123,2]
[391628722,1760709105336,-996.02,0.00027123,2]
[391628723,1760709105346,-500.0,0.00027123,2]
[391628724,1760709105355,-534.95,0.00027123,2]
[391628725,1760709105364,-712.19,0.00027123,2]
[391628726,1760709105375,-755.48,0.00027123,2]
[391628727,1760709105384,-500.0,0.00027123,2]
[391628728,1760709105394,-652.89,0.00027123,2]
[391628729,1760709105404,-530.1,0.00027123,2]
[391628730,1760709105414,-500.0,0.00027123,2]
[391628731,1760709105424,-2532.97,0.00027123,2]
[391628732,1760709105434,-1140.2,0.00027123,2]
[391628733,1760709105444,-500.0,0.00027123,2]
[391628734,1760709105454,-2976.2,0.00027123,2]
[391628735,1760709105464,-630.41,0.00027123,2]
[391628736,1760709105474,-428.56986794,0.00027123,2]
[391628737,1760709105485,-1119.53,0.00027123,2]
[391628738,1760709105495,-1387.94,0.00027123,2]
[391628739,1760709105504,-666.66,0.00027123,2]
[391628740,1760709105514,-566.55,0.00027123,2]
[391628741,1760709105524,-229.64236471,0.00027123,2]
[391628742,1760709105534,-500.0,0.00027123,2]
[391628743,1760709105543,-500.0,0.00027123,2]
[391628744,1760709105553,-1000.0,0.00027123,2]
[391628745,1760709105563,-706.74,0.00027123,2]
[391628746,1760709105572,-500.0,0.00027123,2]
[391628747,1760709105582,-1247.05,0.00027123,2]
[391628748,1760709105592,-500.0,0.00027123,2]
[391628749,1760709105605,-1306.87,0.00027123,2]
[391628750,1760709105615,-2452.62,0.00027123,2]
[391628751,1760709105624,-500.0,0.00027123,2]
[391628752,1760709105634,-500.0,0.00027123,2]
[391628753,1760709105646,-530.71,0.00027123,2]
[391628754,1760709105655,-500.0,0.00027123,2]
[391628755,1760709105665,-642.79,0.00027123,2]
[391628756,1760709105676,-1026.4,0.00027123,2]
[391628757,1760709105686,-500.0,0.00027123,2]
[391628758,1760709105695,-500.0,0.00027123,2]
[391628759,1760709105705,-500.0,0.00027123,2]
[391628760,1760709105716,-500.0,0.00027123,2]
[391628761,1760709105725,-500.0,0.00027123,2]
[391628762,1760709105736,-3204.71,0.00027123,2]
[391628763,1760709105747,-522.5,0.00027123,2]
[391628764,1760709105756,-910.91,0.00027123,2]
[391628765,1760709105766,-500.0,0.00027123,2]
[391628766,1760709105775,-500.0,0.00027123,2]
[391628767,1760709105785,-5381.98,0.00027123,2]
[391628768,1760709105795,-500.0,0.00027123,2]
[391628769,1760709105805,-1649.56,0.00027123,2]
[391628770,1760709105814,-500.0,0.00027123,2]
[391628771,1760709105824,-500.0,0.00027123,2]
[391628772,1760709105834,-507.36,0.00027123,2]
[391628773,1760709105843,-2000.0,0.00027123,7]
[391628774,1760709105853,-1028.69,0.00027123,2]
[391628775,1760709105862,-500.0,0.00027123,2]
[391628776,1760709105872,-2897.84,0.00027123,2]
[391628777,1760709105881,-300.0,0.00027123,2]
[391628778,1760709105891,-1506.26,0.00027123,2]
[391628779,1760709105900,-500.0,0.00027123,2]
[391628780,1760709105910,-500.0,0.00027123,2]
[391628781,1760709105919,-1864.44,0.00027123,2]
[391628782,1760709105929,-1456.13,0.00027123,2]
[391628783,1760709105939,-500.0,0.00027123,2]
[391628784,1760709105948,-1557.69,0.00027123,2]
[391628785,1760709105957,-500.0,0.00027123,2]
[391628786,1760709105966,-151.0,0.00027123,7]
[391628787,1760709105975,-151.0,0.00027123,7]
[391628788,1760709105986,-151.0,0.00027123,7]
[391628789,1760709105996,-287.200198,0.00027123,7]
[391628790,1760709106006,-2742.55,0.00027123,2]
[391628791,1760709106015,-2131.241466,0.00027123,7]
[391628792,1760709106024,-2074.75,0.00027123,2]
[391628793,1760709106035,-500.0,0.00027123,2]
[391628794,1760709106044,-2131.241466,0.00027123,7]
[391628795,1760709106054,-175.368891,0.00027123,7]
[391628796,1760709106064,-2131.241466,0.00027123,7]
[391628797,1760709106073,-175.368891,0.00027123,7]
[391628798,1760709106082,-2131.241466,0.00027123,7]
[391628799,1760709106092,-175.368891,0.00027123,7]
[391628800,1760709106101,-175.368891,0.00027123,7]
[391628801,1760709106111,-151.0,0.00027123,7]
[391628802,1760709106121,-504.38,0.00027123,2]
[391628803,1760709106131,-500.0,0.00027123,2]
[391628804,1760709106140,-746.027,0.00027123,7]
[391628805,1760709106150,-746.027,0.00027123,7]
[391628806,1760709106160,-2196.07,0.00027123,2]
[391628807,1760709106169,-151.0,0.00027123,7]
[391628808,1760709106179,-1384.14,0.00027123,2]
[391628809,1760709106188,-746.027,0.00027123,7]
[391628810,1760709106198,-151.0,0.00027123,7]
[391628811,1760709106207,-746.027,0.00027123,7]
[391628812,1760709106217,-559.51,0.00027123,2]
[391628813,1760709106226,-500.0,0.00027123,2]
[391628814,1760709106236,-500.0,0.00027123,2]
[391628815,1760709106246,-3718.78,0.00027123,2]
[391628816,1760709106256,-500.0,0.00027123,2]
[391628817,1760709106266,-500.0,0.00027123,2]
[391628818,1760709106276,-3147.15,0.00027123,2]
[391628819,1760709106286,-500.0,0.00027123,2]
[391628820,1760709106296,-500.0,0.00027123,2]
[391628821,1760709106305,-536.88927157,0.00027123,2]
[391628822,1760709106314,-4200.71,0.00027123,2]
[391628823,1760709106324,-500.0,0.00027123,2]
[391628824,1760709106334,-1582.41,0.00027123,2]
[391628825,1760709106344,-151.0,0.00027123,7]
[391628826,1760709106353,-182.226337,0.00027123,7]
[391628827,1760709106363,-151.0,0.00027123,7]
[391628828,1760709106373,-1494.76,0.00027123,2]
[391628829,1760709106383,-500.0,0.00027123,2]
[391628830,1760709106392,-151.0,0.00027123,7]
[391628831,1760709106402,-161.633945,0.00027123,7]
[391628832,1760709106411,-151.0,0.00027123,7]
[391628833,1760709106421,-1298.58,0.00027123,2]
[391628834,1760709106431,-6323.72,0.00027123,2]
[391628835,1760709106440,-922.69,0.00027123,2]
[391628836,1760709106450,-500.0,0.00027123,2]
[391628837,1760709106460,-420.144259,0.00027123,7]
[391628838,1760709106470,-420.144259,0.00027123,7]
[391628839,1760709106479,-500.0,0.00027123,2]
[391628840,1760709106491,-420.144259,0.00027123,7]
[391628841,1760709106500,-420.144259,0.00027123,7]
[391628842,1760709106510,-2389.12,0.00027123,2]
[391628843,1760709106519,-500.0,0.00027123,2]
[391628844,1760709106529,-500.0,0.00027123,2]
[391628845,1760709106539,-154.87464162,0.00027288,2]
[391628846,1760709106549,-1913.0,0.000273,2]
[391628847,1760709106559,-517.13,0.00027397,2]
[391628848,1760709106568,-500.0,0.00027397,2]
[391628849,1760709106578,-500.0,0.00027397,2]
[391628850,1760709106588,-342.85897721,0.00027397,2]
[391628851,1760709106598,-1160.36,0.00027397,2]
[391628852,1760709106612,-585.15,0.00027397,2]
[391628853,1760709106622,-500.0,0.00027397,2]
[391628854,1760709106632,-500.0,0.00027397,2]
[391628855,1760709106641,-500.0,0.00027397,2]
[391628856,1760709106653,-629.28220767,0.00027397,2]
[391628857,1760709106663,-500.0,0.00027397,2]
[391628858,1760709106674,-1061.05,0.00027397,2]
[391628859,1760709106684,-168.71522902,0.00027397,2]
[391628860,1760709106694,-500.0,0.00027397,2]
[391628861,1760709106703,-592.79,0.00027397,2]
[391628862,1760709106713,-590.72124056,0.00027397,2]
[391628863,1760709106723,-1160.24,0.00027397,2]
[391628864,1760709106734,-824.37,0.00027397,2]
[391628865,1760709106745,-824.37,0.00027397,2]
[391628866,1760709106755,-824.37,0.00027397,2]
[391628867,1760709106764,-824.37,0.00027397,2]
[391628868,1760709106773,-824.37,0.00027397,2]
[391628869,1760709106783,-824.37,0.00027397,2]
[391628870,1760709106792,-824.37,0.00027397,2]
[391628871,1760709106802,-824.37,0.00027397,2]
[391628872,1760709106812,-824.37,0.00027397,2]
[391628873,1760709106822,-824.37,0.00027397,2]
[391628874,1760709106831,-824.37,0.00027397,2]
[391628875,1760709106841,-1730.63,0.00027397,2]
[391628876,1760709106851,-671.89,0.00027397,2]
[391628877,1760709106861,-500.0,0.00027397,2]
[391628878,1760709106871,-500.0,0.00027397,2]
[391628879,1760709106881,-500.0,0.00027397,2]
[391628880,1760709106890,-1711.57,0.00027397,2]
[391628881,1760709106900,-526.67,0.00027397,2]
[391628882,1760709106909,-3442.59,0.00027397,2]
[391628883,1760709106919,-500.0,0.00027397,2]
[391628884,1760709107219,-606.95,0.00027397,2]
[391628885,1760709107235,-780.1,0.00027397,2]
[391628886,1760709107245,-500.0,0.00027397,2]
[391628887,1760709107255,-770.05,0.00027397,2]
[391628888,1760709107265,-500.0,0.00027397,2]
[391628889,1760709107275,-500.0,0.00027397,2]
[391628890,1760709107284,-1701.03,0.00027397,2]
[391628891,1760709107295,-1200.12,0.00027397,2]
[391628892,1760709107305,-1288.92,0.00027397,2]
[391628893,1760709107315,-500.0,0.00027397,2]
[391628894,1760709107324,-625.75762143,0.00027397,2]
[391628895,1760709107335,-1817.2,0.00027397,2]
[391628896,1760709107344,-500.0,0.00027397,2]
[391628897,1760709107354,-760.86,0.00027397,2]
[391628898,1760709107365,-500.0,0.00027397,2]
[391628899,1760709107375,-500.0,0.00027397,2]
[391628900,1760709107384,-2000.0,0.00027397,13]
[391628901,1760709107394,-1098.2,0.00027397,2]
[391628902,1760709107403,-511.22,0.00027397,2]
[391628903,1760709107413,-706.0,0.00027397,2]
[391628904,1760709107423,-500.0,0.00027397,2]
[391628905,1760709107434,-3252.66,0.00027397,2]
[391628906,1760709107443,-1046.4,0.00027397,2]
[391628907,1760709107453,-2857.65,0.00027397,2]
[391628908,1760709107463,-500.0,0.00027397,2]
[391628909,1760709107473,-500.0,0.00027397,2]
[391628910,1760709107485,-668.62,0.00027397,2]
[391628911,1760709107495,-3315.73,0.00027397,2]
[391628912,1760709107504,-2028.03,0.00027397,2]
[391628913,1760709107514,-1249.99,0.00027397,2]
[391628914,1760709107524,-500.0,0.00027397,2]
[391628915,1760709107534,-666.89,0.00027397,2]
[391628916,1760709107544,-567.07,0.00027397,2]
[391628917,1760709107555,-624.28,0.00027397,2]
[391628918,1760709107565,-500.0,0.00027397,2]
[391628919,1760709107575,-500.0,0.00027397,2]
[391628920,1760709107586,-500.0,0.00027397,2]
[391628921,1760709107596,-500.0,0.00027397,2]
[391628922,1760709107610,-644.5,0.00027397,2]
[391628923,1760709107620,-738.71,0.00027397,2]
[391628924,1760709107630,-500.0,0.00027397,2]
[391628925,1760709107640,-500.0,0.00027397,2]
[391628926,1760709107650,-875.04,0.00027397,2]
[391628927,1760709107660,-500.0,0.00027397,2]
[391628928,1760709107671,-500.0,0.00027397,2]
[391628929,1760709107681,-2590.26,0.00027397,2]
[391628930,1760709107691,-1145.85,0.00027397,2]
[391628931,1760709107702,-500.0,0.00027397,2]
[391628932,1760709107712,-500.0,0.00027397,2]
[391628933,1760709107723,-589.63,0.00027397,2]
[391628934,1760709107732,-840.86,0.00027397,2]
[391628935,1760709107744,-360.86650252,0.00027397,2]
[391628936,1760709107754,-599.72,0.00027397,2]
[391628937,1760709107764,-500.0,0.00027397,2]
[391628938,1760709107774,-2359.88,0.00027397,2]
[391628939,1760709107784,-2899.42,0.00027397,2]
[391628940,1760709107794,-926.78,0.00027397,2]
[391628941,1760709107804,-970.74,0.00027397,2]
[391628942,1760709107814,-1604.59,0.00027397,2]
[391628943,1760709107824,-500.0,0.00027397,2]
[391628944,1760709107833,-500.0,0.00027397,2]
[391628945,1760709107841,-500.0,0.00027397,2]
[391628946,1760709107851,-693.35,0.00027397,2]
[391628947,1760709107860,-620.21,0.00027397,2]
[391628948,1760709107873,-500.0,0.00027397,2]
[391628949,1760709107883,-500.0,0.00027397,2]
[391628950,1760709107892,-693.02,0.00027397,2]
[391628951,1760709107903,-546.85,0.00027397,2]
[391628952,1760709107913,-500.0,0.00027397,2]
[391628953,1760709107922,-1354.15,0.00027397,2]
[391628954,1760709107933,-3285.62,0.00027397,2]
[391628955,1760709107944,-432.33116701,0.00027397,2]
[391628956,1760709107955,-500.0,0.00027397,2]
[391628957,1760709107965,-453.82269403,0.00027397,2]
[391628958,1760709107975,-751.82,0.00027397,2]
[391628959,1760709107986,-1494.42,0.00027397,2]
[391628960,1760709107995,-633.38,0.00027397,2]
[391628961,1760709108004,-500.0,0.00027397,2]
[391628962,1760709108014,-996.02,0.00027397,2]
[391628963,1760709108023,-500.0,0.00027397,2]
[391628964,1760709108032,-534.95,0.00027397,2]
[391628965,1760709108042,-712.19,0.00027397,2]
[391628966,1760709108052,-755.48,0.00027397,2]
[391628967,1760709108062,-500.0,0.00027397,2]
[391628968,1760709108071,-652.89,0.00027397,2]
[391628969,1760709108081,-530.1,0.00027397,2]
[391628970,1760709108091,-500.0,0.00027397,2]
[391628971,1760709108100,-2532.97,0.00027397,2]
[391628972,1760709108110,-1140.2,0.00027397,2]
[391628973,1760709108119,-441.89343001,0.00027397,2]
[391628974,1760709108127,-2976.2,0.00027397,2]
[391628975,1760709108137,-630.41,0.00027397,2]
[391628976,1760709108147,-1119.53,0.00027397,2]
[391628977,1760709108156,-1387.94,0.00027397,2]
[391628978,1760709108166,-666.66,0.00027397,2]
[391628979,1760709108175,-566.55,0.00027397,2]
[391628980,1760709108184,-151.0,0.00027397,7]
[391628981,1760709108194,-151.0,0.00027397,7]
[391628982,1760709108203,-500.0,0.00027397,2]
[391628983,1760709108213,-151.0,0.00027397,7]
[391628984,1760709108222,-500.0,0.00027397,2]
[391628985,1760709108232,-1000.0,0.00027397,2]
[391628986,1760709108246,-706.74,0.00027397,2]
[391628987,1760709108255,-500.0,0.00027397,2]
[391628988,1760709108265,-500.0,0.00027397,2]
[391628989,1760709108274,-1306.87,0.00027397,2]
[391628990,1760709108283,-1247.05,0.00027397,2]
[391628991,1760709108292,-2452.62,0.00027397,2]
[391628992,1760709108302,-500.0,0.00027397,2]
[391628993,1760709108312,-500.0,0.00027397,2]
[391628994,1760709108321,-530.71,0.00027397,2]
[391628995,1760709108331,-500.0,0.00027397,2]
[391628996,1760709108341,-642.79,0.00027397,2]
[391628997,1760709108351,-1026.4,0.00027397,2]
[391628998,1760709108360,-500.0,0.00027397,2]
[391628999,1760709108370,-151.00000003,0.00027397,7]
[391629000,1760709108380,-503.98658772,0.00027397,2]
[391629001,1760709108390,-547.16468902,0.00027397,2]
[391629002,1760709108399,-151.0,0.00027397,7]
[391629003,1760709108410,-500.0,0.00027397,2]
[391629004,1760709108419,-2000.0,0.00027397,30]
[391629005,1760709108430,-2000.0,0.00027397,30]
[391629006,1760709108440,-213.446379,0.00027397,7]
[391629007,1760709108450,-2000.0,0.00027397,30]
[391629008,1760709108460,-2000.0,0.00027397,30]
[391629009,1760709108470,-151.0,0.00027397,7]
[391629010,1760709108480,-500.0,0.00027397,2]
[391629011,1760709108493,-2000.0,0.00027397,30]
[391629012,1760709108503,-2000.0,0.00027397,30]
[391629013,1760709108512,-2000.0,0.00027397,30]
[391629014,1760709108523,-2000.0,0.00027397,30]
[391629015,1760709108533,-2000.0,0.00027397,30]
[391629016,1760709108543,-213.446379,0.00027397,7]
[391629017,1760709108552,-279.630408,0.00027397,7]
[391629018,1760709108561,-2000.0,0.00027397,30]
[391629019,1760709108571,-2022.45581872,0.00027397,30]
[391629020,1760709108580,-213.446379,0.00027397,7]
[391629021,1760709108590,-1081.82,0.00027397,30]
[391629022,1760709108603,-1081.82,0.00027397,30]
[391629023,1760709108614,-1081.82,0.00027397,30]
[391629024,1760709108624,-213.446379,0.00027397,7]
[391629025,1760709108633,-1081.82,0.00027397,30]
[391629026,1760709108645,-1081.82,0.00027397,30]
[391629027,1760709108656,-1081.82,0.00027397,30]
[391629028,1760709108665,-1081.82,0.00027397,30]
[391629029,1760709108677,-1081.82,0.00027397,30]
[391629030,1760709108690,-1081.82,0.00027397,30]
[391629031,1760709108700,-1081.82,0.00027397,30]
[391629032,1760709108710,-1081.82,0.00027397,30]
[391629033,1760709108720,-500.0,0.00027397,2]
[391629034,1760709108730,-3204.71,0.00027397,2]
[391629035,1760709108741,-163.661789,0.00027397,7]
[391629036,1760709108752,-163.661789,0.00027397,7]
[391629037,1760709108762,-151.0,0.00027397,7]
[391629038,1760709108772,-522.5,0.00027397,2]
[391629039,1760709108783,-163.661789,0.00027397,7]
[391629040,1760709108792,-910.91,0.00027397,2]
[391629041,1760709108802,-151.0,0.00027397,7]
[391629042,1760709108813,-172.121919,0.00027397,7]
[391629043,1760709108822,-163.661789,0.00027397,7]
[391629044,1760709108831,-172.121919,0.00027397,7]
[391629045,1760709108841,-172.121919,0.00027397,7]
[391629046,1760709108850,-172.121919,0.00027397,7]
[391629047,1760709108859,-500.0,0.00027397,2]
[391629048,1760709108867,-151.0,0.00027397,7]
[391629049,1760709108876,-500.0,0.00027397,2]
[391629050,1760709108886,-5381.98,0.00027397,2]
[391629051,1760709108906,-500.0,0.00027397,2]
[391629052,1760709108919,-1649.56,0.00027397,2]
[391629053,1760709108929,-500.0,0.00027397,2]
[391629054,1760709108940,-500.0,0.00027397,2]
[391629055,1760709108950,-507.36,0.00027397,2]
[391629056,1760709108960,-2000.0,0.00027397,7]
[391629057,1760709108970,-1028.69,0.00027397,2]
[391629058,1760709108980,-2897.84,0.00027397,2]
[391629059,1760709108993,-300.0,0.00027397,2]
[391629060,1760709109003,-482.45420398,0.00027397,2]
[391629061,1760709109013,-1506.26,0.00027397,2]
[391629062,1760709109023,-500.0,0.00027397,2]
[391629063,1760709109033,-500.0,0.00027397,2]
[391629064,1760709109044,-1864.44,0.00027397,2]
[391629065,1760709109055,-1456.13,0.00027397,2]
[391629066,1760709109064,-500.0,0.00027397,2]
[391629067,1760709109075,-1557.69,0.00027397,2]
[391629068,1760709109085,-500.0,0.00027397,2]
[391629069,1760709109095,-297.940866,0.00027397,7]
[391629070,1760709109104,-206.347415,0.00027397,7]
[391629071,1760709109113,-206.347415,0.00027397,7]
[391629072,1760709109123,-206.347415,0.00027397,7]
[391629073,1760709109132,-206.347415,0.00027397,7]
[391629074,1760709109142,-2742.55,0.00027397,2]
[391629075,1760709109152,-2074.75,0.00027397,2]
[391629076,1760709109162,-151.0,0.00027397,7]
[391629077,1760709109173,-500.0,0.00027397,2]
[391629078,1760709109183,-504.38,0.00027397,2]
[391629079,1760709109193,-500.0,0.00027397,2]
[391629080,1760709109203,-1384.14,0.00027397,2]
[391629081,1760709109213,-2196.07,0.00027397,2]
[391629082,1760709109224,-559.51,0.00027397,2]
[391629083,1760709109236,-500.0,0.00027397,2]
[391629084,1760709109246,-500.0,0.00027397,2]
[391629085,1760709109256,-3718.78,0.00027397,2]
[391629086,1760709109271,-500.0,0.00027397,2]
[391629087,1760709109281,-500.0,0.00027397,2]
[391629088,1760709109291,-3147.15,0.00027397,2]
[391629089,1760709109302,-500.0,0.00027397,2]
[391629090,1760709109312,-500.0,0.00027397,2]
[391629091,1760709109323,-4200.71,0.00027397,2]
[391629092,1760709109334,-500.0,0.00027397,2]
[391629093,1760709109344,-1582.41,0.00027397,2]